bitfinex/quotes_SOLUSD_20220114
["timestamp","ask_amount","ask_price","bid_price","bid_amount"]
[1642132448656,22.9744,147.7,147.65,10.4065]
[1642132453358,22.9744,147.7,147.65,0.25]
[1642132453585,22.9744,147.7,147.64,10.03]
[1642132453788,22.9744,147.7,147.64,34.1146]
[1642132454788,1.93141465,147.71,147.64,44.2717]
[1642132455187,1.93141465,147.71,147.65,2.708]
[1642132455588,1.93141465,147.71,147.65,2.958]
[1642132456887,1.93141465,147.72,147.65,2.958]
[1642132457289,1.93141465,147.72,147.66,10.1555]
[1642132457490,1.93141465,147.72,147.67,29.7619201]
[1642132457692,26.04151465,147.73,147.67,29.7619201]
[1642132457890,1.93141465,147.73,147.67,38.7199201]
[1642132458289,1.93141465,147.73,147.67,36.0119201]
[1642132459290,1.93141465,147.73,147.67,46.1669201]
[1642132460401,1.93141465,147.73,147.67,53.5459201]
[1642132460593,1.93141465,147.73,147.67,63.5859201]
[1642132461193,1.93141465,147.75,147.68,2.708]
[1642132461392,1.93141465,147.75,147.7,10.1503]
[1642132461596,1.93141465,147.75,147.7,16.4003]
[1642132461797,1.93141465,147.75,147.7,19.3673]
[1642132462194,1.93141465,147.75,147.7,43.2895]
[1642132462695,1.93141465,147.77,147.7,43.2895]
[1642132468308,1.93141465,147.77,147.7,43.0295]
[1642132468509,1.93141465,147.77,147.7,34.3225]
[1642132470809,25.53791465,147.77,147.7,34.3225]
[1642132476750,25.53791465,147.77,147.7,40.3225]
[1642132476957,25.53791465,147.77,147.7,34.3225]
[1642132477960,25.53791465,147.77,147.7,40.3225]
[1642132493315,25.53791465,147.77,147.7,40.5825]
[1642132497723,25.53791465,147.77,147.7,50.3625]
[1642132498321,25.53791465,147.77,147.71,2.707]
[1642132498521,25.53791465,147.77,147.74,10.1501]
[1642132498725,1.93141465,147.77,147.75,28.74412077]
[1642132498923,1.93141465,147.78,147.75,28.74412077]
[1642132499126,5.86439994,147.77,147.75,28.99412077]
[1642132499626,1.93141465,147.78,147.75,28.99412077]
[1642132501124,1.93141465,147.78,147.75,39.14372077]
[1642132501326,3.66505224,147.82,147.75,39.14372077]
[1642132501327,1.93141465,147.79,147.76,2.707]
[1642132501526,1.93141465,147.79,147.76,9.217]
[1642132501729,3.66505224,147.82,147.76,18.997]
[1642132501927,3.66505224,147.82,147.77,67.88]
[1642132502128,3.66505224,147.82,147.8,10.1452]
[1642132502330,3.66505224,147.86,147.81,23.40371845]
[1642132502528,3.66505224,147.86,147.81,23.65371845]
[1642132503027,3.66505224,147.86,147.81,29.65371845]
[1642132503226,3.66505224,147.86,147.81,23.65371845]
[1642132503428,3.66505224,147.86,147.81,33.79881845]
[1642132503728,2.706,147.89,147.81,33.79881845]
[1642132503933,6.37005224,147.91,147.82,2.705]
[1642132504228,3.66505224,147.91,147.82,12.485]
[1642132504430,2.705,147.93,147.82,27.113]
[1642132504629,2.705,147.93,147.82,51.193]
[1642132504828,8.705,147.93,147.82,51.193]
[1642132505227,8.705,147.93,147.84,10.1431]
[1642132505629,8.705,147.93,147.84,10.3931]
[1642132507730,8.955,147.93,147.84,10.3931]
[1642132508331,8.955,147.93,147.84,16.3931]
[1642132508731,8.955,147.93,147.84,16.1431]
[1642132508933,8.955,147.93,147.82,22.6295]
[1642132508934,19.099,147.93,147.82,22.6295]
[1642132509134,19.099,147.93,147.82,10.1445]
[1642132509960,19.099,147.93,147.82,10.3945]
[1642132510161,7.5447885,147.92,147.82,10.3945]
[1642132510362,2.705,147.91,147.82,10.3945]
[1642132510561,2.955,147.91,147.82,10.3945]
[1642132511860,8.955,147.91,147.82,10.3945]
[1642132512562,8.705,147.91,147.82,10.3945]
[1642132512761,2.705,147.91,147.82,10.3945]
[1642132512963,2.705,147.91,147.82,40.1309]
[1642132513161,2.705,147.91,147.82,49.9109]
[1642132513361,2.705,147.91,147.82,50.1709]
[1642132513762,30.93005224,147.92,147.85,10.1424]
[1642132513963,30.56,147.92,147.85,10.3924]
[1642132514761,6.0,147.92,147.87,29.58188607]
[1642132514962,3.66505224,147.94,147.87,29.83188607]
[1642132515162,6.25,147.94,147.87,29.83188607]
[1642132515363,0.25,147.94,147.87,29.83188607]
[1642132516164,0.25,147.94,147.87,39.97278607]
[1642132516363,12.61905224,147.95,147.87,39.97278607]
[1642132516563,6.36905224,147.95,147.87,39.97278607]
[1642132516963,6.36905224,147.95,147.87,46.23278607]
[1642132517163,3.66505224,147.95,147.88,2.704]
[1642132517366,3.66505224,147.95,147.91,10.1377]
[1642132517564,3.66505224,147.95,147.91,10.3877]
[1642132517766,3.66505224,147.95,147.92,2.703]
[1642132517968,3.66505224,147.95,147.93,31.40415315]
[1642132518165,3.66505224,147.98,147.93,31.40415315]
[1642132518365,3.66505224,147.98,147.93,31.65415315]
[1642132518566,3.66505224,147.98,147.93,34.35715315]
[1642132518770,3.66505224,147.98,147.93,31.65415315]
[1642132519165,3.66505224,147.98,147.93,41.79065315]
[1642132520166,3.66505224,147.98,147.93,0.25]
[1642132520366,6.25,147.98,147.93,0.25]
[1642132520566,6.25,147.98,147.91,13.0912]
[1642132520766,2.703,147.99,147.91,13.0912]
[1642132520970,6.5804201,148.0,147.91,13.0912]
[1642132521168,6.5804201,148.0,147.92,23.7112857]
[1642132521467,3.66505224,147.99,147.92,34.0987857]
[1642132522366,3.91505224,147.99,147.92,34.0987857]
[1642132522568,3.91505224,147.99,147.92,10.3875]
[1642132522773,2.703,147.98,147.92,10.3875]
[1642132522971,2.953,147.98,147.92,10.3875]
[1642132523370,2.953,147.98,147.92,0.25]
[1642132523569,2.953,147.98,147.9,39.81690826]
[1642132523769,6.36805224,147.98,147.9,39.81690826]
[1642132523968,6.36805224,147.98,147.9,33.81690826]
[1642132524169,6.61805224,147.98,147.9,33.81690826]
[1642132524574,2.953,147.98,147.9,33.81690826]
[1642132524771,0.25,147.98,147.9,33.81690826]
[1642132525470,29.65065224,147.99,147.9,33.81690826]
[1642132525672,26.94765224,147.99,147.9,33.81690826]
[1642132526071,26.94765224,147.99,147.9,10.3889]
[1642132526476,26.94765224,147.99,147.89,2.703]
[1642132526773,26.94765224,147.99,147.84,2.703]
[1642132526774,80.163,147.98,147.84,2.703]
[1642132526977,80.413,147.98,147.84,25.2956]
[1642132527176,10.1426,147.95,147.85,22.97796634]
[1642132527375,2.704,147.94,147.85,22.97796634]
[1642132527574,2.704,147.96,147.88,10.1408]
[1642132527973,8.954,147.96,147.88,10.1408]
[1642132528176,2.954,147.96,147.88,10.1408]
[1642132528577,2.704,147.96,147.88,10.3908]
[1642132528775,27.95865224,147.97,147.91,10.1385]
[1642132528975,27.95865224,147.97,147.93,25.83146585]
[1642132529176,3.66505224,147.97,147.93,25.83146585]
[1642132529381,3.66505224,147.99,147.93,26.08146585]
[1642132529575,9.66505224,147.99,147.93,26.08146585]
[1642132529781,3.66505224,147.99,147.93,26.08146585]
[1642132530277,3.87746317,148.0,147.93,26.08146585]
[1642132530476,10.12746317,148.0,147.93,26.08146585]
[1642132530678,4.12746317,148.0,147.93,26.08146585]
[1642132530877,10.12746317,148.0,147.93,26.08146585]
[1642132531078,6.25,148.0,147.93,26.08146585]
[1642132531375,0.25,148.0,147.93,26.08146585]
[1642132531777,22.75655224,148.01,147.93,26.08146585]
[1642132534177,12.61805224,148.01,147.93,26.08146585]
[1642132534379,12.61805224,148.01,147.93,36.21856585]
[1642132535182,12.61805224,148.01,147.93,10.3871]
[1642132535480,22.75595224,148.01,147.93,0.25]
[1642132535778,22.9886,148.0,147.93,0.25]
[1642132535976,23.2386,148.0,147.92,23.9347]
[1642132536178,27.11609887,148.0,147.92,23.9347]
[1642132536881,27.11609887,148.0,147.92,34.0725]
[1642132537282,27.11609887,148.0,147.92,10.3878]
[1642132537682,37.25469887,148.0,147.91,2.703]
[1642132537881,37.04225224,148.0,147.9,2.703]
[1642132538078,2.703,147.99,147.89,23.4631]
[1642132538279,23.0831,147.98,147.89,23.4631]
[1642132538482,23.3331,147.98,147.89,23.4631]
[1642132539281,10.1409,147.97,147.89,23.4631]
[1642132539481,13.0939,147.97,147.89,23.4631]
[1642132539681,19.0939,147.97,147.89,23.4631]
[1642132540084,19.0939,147.97,147.89,23.7131]
[1642132540483,22.75895224,147.97,147.89,23.7131]
[1642132541185,19.0939,147.97,147.89,23.7131]
[1642132541587,25.0309,147.97,147.86,10.1415]
[1642132541786,23.554,147.96,147.85,2.703]
[1642132541985,10.1435,147.93,147.82,35.5572]
[1642132542185,25.9191,147.92,147.82,35.5572]
[1642132542387,25.9191,147.92,147.83,25.19273605]
[1642132542587,26.1691,147.92,147.83,25.19273605]
[1642132543288,26.1691,147.92,147.84,10.1429]
[1642132543518,26.1691,147.92,147.84,12.8469]
[1642132543689,25.9191,147.92,147.84,12.8469]
[1642132543887,32.1691,147.92,147.84,12.8469]
[1642132544288,32.1691,147.92,147.84,13.0969]
[1642132544488,32.1691,147.92,147.84,10.3929]
[1642132544892,26.1691,147.92,147.84,10.3929]
[1642132545299,32.1691,147.92,147.84,10.3929]
[1642132545896,23.4651,147.92,147.84,10.3929]
[1642132546102,2.704,147.94,147.84,10.3929]
[1642132546305,3.66505224,147.95,147.88,10.1407]
[1642132546502,3.91505224,147.95,147.89,26.63251474]
[1642132546901,9.91505224,147.95,147.89,26.63251474]
[1642132547104,9.91505224,147.95,147.88,0.25]
[1642132547304,2.704,147.94,147.88,0.25]
[1642132547503,2.954,147.94,147.88,0.25]
[1642132547703,26.9377,147.94,147.86,10.1417]
[1642132548006,26.9377,147.94,147.86,10.3917]
[1642132548202,26.9377,147.94,147.87,23.07330195]
[1642132548402,26.6877,147.94,147.87,23.07330195]
[1642132548602,26.9377,147.94,147.87,23.32330195]
[1642132548804,26.9377,147.94,147.87,23.07330195]
[1642132549603,26.9377,147.94,147.87,23.32330195]
[1642132550205,37.0805,147.94,147.87,23.32330195]
[1642132550607,26.9377,147.94,147.87,23.32330195]
[1642132550904,26.6877,147.94,147.87,23.32330195]
[1642132551136,23.9837,147.94,147.87,23.32330195]
[1642132552136,23.9837,147.94,147.87,33.46450195]
[1642132555034,23.9837,147.94,147.88,2.704]
[1642132555435,23.9837,147.94,147.88,2.954]
[1642132556235,23.9837,147.94,147.88,0.25]
[1642132556635,23.9837,147.94,147.87,39.46450195]
[1642132557135,23.9837,147.94,147.87,33.46450195]
[1642132559439,23.9837,147.94,147.87,33.21450195]
[1642132559642,24.2337,147.94,147.87,33.21450195]
[1642132560742,23.9837,147.94,147.87,33.21450195]
[1642132560939,24.2337,147.94,147.87,33.46450195]
[1642132561139,23.9837,147.94,147.87,33.46450195]
[1642132561839,23.9837,147.94,147.87,39.46450195]
[1642132564642,23.9837,147.94,147.87,49.24450195]
[1642132564853,2.704,147.96,147.87,49.24450195]
[1642132565045,26.2745,147.96,147.88,24.1505]
[1642132565248,23.5705,147.96,147.88,26.8545]
[1642132565449,23.8205,147.96,147.88,43.2451]
[1642132565848,33.9617,147.96,147.88,33.1045]
[1642132566248,2.704,147.95,147.88,27.1045]
[1642132566450,2.954,147.95,147.88,27.1045]
[1642132566850,13.0959,147.95,147.88,2.954]
[1642132567048,19.0959,147.95,147.88,2.954]
[1642132567249,19.0959,147.95,147.88,2.704]
[1642132568049,13.0959,147.95,147.88,2.704]
[1642132569251,2.954,147.95,147.88,2.704]
[1642132569550,2.704,147.95,147.88,0.25]
[1642132569782,2.704,147.95,147.89,10.1396]
[1642132569951,27.23555224,147.96,147.89,10.3896]
[1642132570151,27.23555224,147.96,147.89,13.0936]
[1642132570353,27.23555224,147.96,147.89,10.3896]
[1642132570754,3.66505224,147.96,147.89,10.3896]
[1642132570953,6.36905224,147.98,147.89,10.3896]
[1642132571154,29.26435224,147.98,147.89,10.3896]
[1642132571559,29.51435224,147.98,147.89,10.3896]
[1642132571754,29.26435224,147.98,147.9,22.7674]
[1642132571955,26.56035224,147.98,147.91,10.1382]
[1642132572154,26.56035224,147.98,147.92,25.04700465]
[1642132572559,26.56035224,147.98,147.92,25.29700465]
[1642132572957,22.8953,147.98,147.92,25.29700465]
[1642132573859,23.1453,147.98,147.92,25.29700465]
[1642132574358,22.8953,147.98,147.92,25.29700465]
[1642132574558,23.1453,147.98,147.92,25.29700465]
[1642132574763,22.8953,147.98,147.92,35.43490465]
[1642132575459,23.1453,147.98,147.92,35.43490465]
[1642132576668,25.5983,147.98,147.92,35.43490465]
[1642132576861,25.8483,147.98,147.92,35.43490465]
[1642132578291,25.5983,147.98,147.92,35.43490465]
[1642132579494,2.703,147.98,147.92,35.43490465]
[1642132579895,3.66505224,148.0,147.92,35.43490465]
[1642132580095,9.91505224,148.0,147.92,35.43490465]
[1642132580296,3.91505224,148.0,147.92,35.43490465]
[1642132580694,9.91505224,148.0,147.93,23.5347]
[1642132580896,3.91505224,148.0,147.93,23.5347]
[1642132581097,0.25,148.0,147.93,23.7847]
[1642132581297,6.25,148.0,147.93,23.7847]
[1642132581696,0.25,148.0,147.93,23.7847]
[1642132581897,2.703,147.99,147.93,23.7847]
[1642132582096,2.953,147.99,147.93,23.7847]
[1642132583798,2.953,147.99,147.93,33.9219]
[1642132584198,2.703,147.99,147.93,33.9219]
[1642132584597,3.66505224,148.0,147.94,2.703]
[1642132584797,3.66505224,148.0,147.97,10.1345]
[1642132584997,3.66505224,148.0,147.98,0.2]
[1642132585398,23.7812,148.01,147.98,0.2]
[1642132585599,5.86439994,148.0,147.97,10.3845]
[1642132585800,5.86439994,148.0,147.98,28.33540982]
[1642132586001,23.7812,148.01,147.98,28.33540982]
[1642132586199,4.00447959,148.02,147.99,0.2]
[1642132586699,0.33942735,148.02,147.99,0.2]
[1642132586901,5.86439994,148.01,147.99,0.2]
[1642132587099,5.86439994,148.01,147.98,28.58540982]
[1642132588701,0.33942735,148.02,147.99,0.2]
[1642132589305,5.86439994,148.01,147.99,0.2]
[1642132589506,5.86439994,148.01,147.98,0.25]
[1642132589904,5.86439994,148.01,147.97,10.3845]
[1642132590404,5.86439994,148.01,147.97,0.25]
[1642132590804,5.86439994,148.01,147.95,33.7001665]
[1642132591008,5.86439994,148.01,147.95,10.3856]
[1642132591206,5.86439994,148.01,147.95,0.25]
[1642132591606,5.86439994,148.01,147.94,2.953]
[1642132592109,5.86439994,148.01,147.94,36.39896059]
[1642132593109,5.86439994,148.01,147.94,42.39896059]
[1642132593307,5.86439994,148.01,147.94,36.39896059]
[1642132595008,5.86439994,148.01,147.94,42.39896059]
[1642132596312,5.86439994,148.01,147.94,36.39896059]
[1642132599022,5.86439994,148.01,147.94,33.69596059]
[1642132599921,5.86439994,148.01,147.94,39.69596059]
[1642132610260,5.86439994,148.01,147.95,2.703]
[1642132610461,5.86439994,148.01,147.97,10.1343]
[1642132610960,5.86439994,148.01,147.97,10.3843]
[1642132612461,5.86439994,148.01,147.97,0.25]
[1642132612965,5.86439994,148.01,147.95,23.7157]
[1642132613163,2.703,148.0,147.97,0.02]
[1642132613564,12.8398,148.01,147.97,0.02]
[1642132614063,13.0898,148.01,147.97,0.02]
[1642132614366,13.0898,148.01,147.94,23.30956059]
[1642132614964,13.0898,148.01,147.94,23.55956059]
[1642132616771,2.702,148.01,147.94,23.55956059]
[1642132617369,0.33942735,148.02,147.94,23.55956059]
[1642132617572,0.33942735,148.02,147.95,25.2104]
[1642132617972,0.33942735,148.02,147.95,25.4604]
[1642132618473,0.33942735,148.02,147.95,31.4604]
[1642132618670,0.33942735,148.02,147.95,25.4604]
[1642132619370,0.33942735,148.02,147.95,35.5958]
[1642132622501,1.93821411,148.01,147.95,35.5958]
[1642132623504,1.93821411,148.01,147.95,41.5958]
[1642132624901,1.93821411,148.01,147.95,38.8928]
[1642132625902,1.93821411,148.01,147.95,32.8928]
[1642132628304,1.93821411,148.01,147.95,10.3854]
[1642132628906,1.93821411,148.0,147.95,10.3854]
[1642132631216,1.93821411,147.99,147.95,0.25]
[1642132631518,1.93821411,147.99,147.94,23.55956059]
[1642132634724,1.93821411,147.99,147.94,0.25]
[1642132634926,1.93821411,147.99,147.93,10.3868]
[1642132635524,25.92021411,148.0,147.93,10.3868]
[1642132638029,25.92021411,148.0,147.93,16.3868]
[1642132638230,25.92021411,148.0,147.93,10.3868]
[1642132638729,23.982,148.0,147.93,10.3868]
[1642132638941,23.982,148.0,147.94,12.8397]
[1642132639131,23.982,148.0,147.94,2.703]
[1642132639330,23.982,148.0,147.94,2.953]
[1642132639729,23.982,148.0,147.94,0.25]
[1642132640530,23.982,148.0,147.93,2.953]
[1642132640730,25.92021411,148.0,147.93,2.953]
[1642132641159,25.92021411,148.0,147.93,13.0901]
[1642132642260,25.92021411,148.0,147.93,10.3871]
[1642132643159,25.92021411,148.0,147.93,0.25]
[1642132643658,36.05851411,148.0,147.92,25.5527]
[1642132643857,36.05851411,148.0,147.92,2.703]
[1642132644057,43.86651411,148.0,147.92,2.703]
[1642132644258,4.64121411,147.99,147.9,1.82345309]
[1642132644459,14.67121411,147.99,147.9,1.82345309]
[1642132645057,82.35121411,147.99,147.9,1.82345309]
[1642132645258,82.35121411,147.99,147.9,2.07345309]
[1642132645458,1.93821411,147.96,147.9,0.25]
[1642132645858,1.93821411,147.96,147.87,48.38853454]
[1642132646264,10.1426,147.95,147.87,48.13853454]
[1642132646460,36.5204,147.95,147.87,48.13853454]
[1642132647859,38.45861411,147.95,147.87,46.31508145]
[1642132648160,35.75461411,147.95,147.87,46.31508145]
[1642132648359,2.704,147.94,147.87,46.31508145]
[1642132648564,2.954,147.94,147.87,46.31508145]
[1642132649466,2.954,147.94,147.87,46.56508145]
[1642132649665,0.25,147.94,147.87,46.56508145]
[1642132650079,35.75461411,147.95,147.87,46.56508145]
[1642132650468,41.75461411,147.95,147.87,46.56508145]
[1642132651170,2.704,147.94,147.87,46.56508145]
[1642132651571,2.954,147.94,147.87,46.56508145]
[1642132652372,2.704,147.94,147.87,46.56508145]
[1642132653674,35.50461411,147.95,147.87,46.56508145]
[1642132653873,35.75461411,147.95,147.87,46.56508145]
[1642132654878,2.704,147.94,147.86,1.82345309]
[1642132655079,10.145,147.92,147.86,1.82345309]
[1642132655278,30.0,147.9,147.83,10.9399766]
[1642132655477,2.705,147.89,147.83,10.9399766]
[1642132655879,2.955,147.89,147.83,10.9399766]
[1642132656078,10.1479,147.87,147.83,7.05743866]
[1642132656480,10.3979,147.87,147.83,7.05743866]
[1642132656880,16.6879,147.87,147.83,7.05743866]
[1642132657079,10.1492,147.85,147.78,6.58653794]
[1642132657279,2.706,147.84,147.77,3.88253794]
[1642132657584,2.956,147.84,147.77,3.88253794]
[1642132657779,0.25,147.84,147.78,31.92831062]
[1642132657978,2.706,147.83,147.78,31.92831062]
[1642132658386,2.706,147.85,147.78,32.17831062]
[1642132658581,2.956,147.85,147.78,32.17831062]
[1642132660382,13.1053,147.85,147.78,32.17831062]
[1642132660583,12.8553,147.85,147.78,32.17831062]
[1642132661088,12.8553,147.85,147.78,31.92831062]
[1642132661286,12.8553,147.85,147.78,32.17831062]
[1642132661887,13.1053,147.85,147.78,32.17831062]
[1642132662285,2.956,147.85,147.78,32.17831062]
[1642132666790,13.1053,147.85,147.78,32.17831062]
[1642132667190,13.1053,147.85,147.78,0.25]
[1642132667620,19.1053,147.85,147.77,25.1928]
[1642132667823,19.1053,147.85,147.77,0.25]
[1642132668022,19.1053,147.85,147.76,2.956]
[1642132668222,19.1053,147.85,147.77,26.75386014]
[1642132668623,19.1053,147.85,147.77,27.00386014]
[1642132671434,13.1053,147.85,147.77,27.00386014]
[1642132675930,19.1053,147.85,147.77,27.00386014]
[1642132676132,13.1053,147.85,147.77,27.00386014]
[1642132676542,19.1053,147.85,147.77,27.00386014]
[1642132677432,13.1053,147.85,147.77,27.00386014]
[1642132678532,19.1053,147.85,147.77,27.00386014]
[1642132678733,13.1053,147.85,147.77,27.00386014]
[1642132679535,2.956,147.85,147.77,27.00386014]
[1642132681035,13.1054,147.85,147.77,27.00386014]
[1642132681436,13.1054,147.85,147.77,0.25]
[1642132681639,19.1054,147.85,147.76,25.6787]
[1642132681837,19.1054,147.85,147.76,22.9727]
[1642132682038,24.4113,147.84,147.76,22.9727]
[1642132682238,10.152,147.81,147.76,22.9727]
[1642132682435,10.402,147.81,147.76,22.9727]
[1642132683538,0.25,147.81,147.76,22.9727]
[1642132683744,2.956,147.83,147.76,22.9727]
[1642132683940,2.956,147.83,147.76,22.7227]
[1642132684240,80.416,147.83,147.76,22.7227]
[1642132684441,80.416,147.83,147.73,3.88253794]
[1642132684639,80.416,147.83,147.72,3.88253794]
[1642132684640,86.169,147.83,147.72,3.88253794]
[1642132684841,67.68,147.81,147.72,3.88253794]
[1642132685040,2.707,147.8,147.72,3.88253794]
[1642132685443,2.957,147.8,147.73,25.06260468]
[1642132686243,10.1537,147.79,147.73,25.06260468]
[1642132686441,2.707,147.78,147.73,25.06260468]
[1642132686841,2.957,147.78,147.73,25.06260468]
[1642132687042,0.25,147.78,147.73,25.06260468]
[1642132687242,0.25,147.78,147.73,25.31260468]
[1642132687941,2.957,147.79,147.73,25.31260468]
[1642132688142,10.1539,147.78,147.73,25.31260468]
[1642132688542,10.4039,147.78,147.73,25.31260468]
[1642132688954,23.2789,147.78,147.7,27.27283794]
[1642132689254,12.487,147.77,147.7,3.88253794]
[1642132689452,10.1576,147.74,147.7,3.88253794]
[1642132689652,16.7706,147.74,147.7,3.88253794]
[1642132689852,2.707,147.73,147.67,3.88253794]
[1642132690054,2.957,147.73,147.67,3.88253794]
[1642132690955,10.158,147.72,147.67,3.88253794]
[1642132691156,10.158,147.72,147.66,22.84071516]
[1642132691558,0.25,147.73,147.66,23.09071516]
[1642132691954,25.8316,147.74,147.66,23.09071516]
[1642132693155,35.9884,147.74,147.66,23.09071516]
[1642132694156,25.8316,147.74,147.66,23.09071516]
[1642132694755,25.8316,147.74,147.67,3.88226436]
[1642132694955,25.8316,147.74,147.67,4.13226436]
[1642132695755,25.8316,147.74,147.67,0.25]
[1642132695956,25.5816,147.74,147.66,49.4788531]
[1642132696156,37.4619,147.78,147.67,12.863]
[1642132696356,37.4619,147.78,147.68,24.2689]
[1642132696560,41.0039,147.78,147.69,2.707]
[1642132696857,40.7539,147.78,147.69,2.707]
[1642132697059,50.5339,147.78,147.69,2.957]
[1642132697867,2.707,147.77,147.69,0.25]
[1642132698067,12.8618,147.77,147.68,24.5189]
[1642132698270,13.1118,147.77,147.68,24.5189]
[1642132699575,13.1118,147.77,147.68,24.2689]
[1642132701090,13.1118,147.77,147.68,24.5189]
[1642132703004,22.8918,147.77,147.68,24.2689]
[1642132703805,28.8918,147.77,147.68,24.2689]
[1642132704707,28.8918,147.77,147.68,24.5189]
[1642132706511,28.8918,147.77,147.68,34.6733]
[1642132706913,28.6418,147.77,147.68,34.6733]
[1642132707215,18.8618,147.77,147.68,34.6733]
[1642132707410,16.4048,147.77,147.69,2.707]
[1642132707711,16.1548,147.77,147.69,2.707]
[1642132707909,16.4048,147.77,147.69,2.957]
[1642132708111,6.25,147.77,147.69,13.1108]
[1642132708311,0.25,147.77,147.69,13.1108]
[1642132708513,0.25,147.77,147.69,2.957]
[1642132708713,2.957,147.77,147.69,2.957]
[1642132709114,12.737,147.77,147.69,2.957]
[1642132709814,22.8916,147.77,147.69,2.957]
[1642132710015,22.8916,147.77,147.69,0.25]
[1642132710415,22.8916,147.77,147.68,34.6733]
[1642132711317,24.6446,147.76,147.68,34.6733]
[1642132711516,2.707,147.75,147.68,34.6733]
[1642132711917,2.957,147.75,147.68,34.6733]
[1642132712946,2.707,147.75,147.68,34.6733]
[1642132713246,12.8605,147.79,147.68,34.6733]
[1642132713447,23.9778,147.78,147.69,12.8608]
[1642132714048,24.2278,147.78,147.7,24.8254]
[1642132714547,24.2278,147.78,147.7,25.0754]
[1642132715251,34.3816,147.78,147.7,25.0754]
[1642132715450,0.25,147.78,147.7,35.2285]
[1642132715651,8.707,147.79,147.7,35.2285]
[1642132715852,6.0,147.79,147.72,28.69180976]
[1642132716052,2.707,147.81,147.72,28.94180976]
[1642132716252,8.707,147.81,147.73,22.9501]
[1642132716451,8.707,147.81,147.73,23.2001]
[1642132717052,8.957,147.81,147.73,23.2001]
[1642132717257,8.957,147.81,147.73,33.351]
[1642132717457,31.5508,147.81,147.73,33.351]
[1642132718554,41.7024,147.81,147.73,22.9501]
[1642132722259,109.3824,147.81,147.73,22.9501]
[1642132722458,109.3824,147.81,147.7,10.153]
[1642132722761,116.1704,147.81,147.7,25.1128]
[1642132722957,116.1704,147.81,147.7,24.8628]
[1642132723258,117.86600408,147.81,147.7,24.8628]
[1642132723458,117.86600408,147.81,147.7,25.1128]
[1642132724461,9.78,147.8,147.7,25.1128]
[1642132724660,10.1545,147.77,147.7,25.1128]
[1642132724861,2.707,147.76,147.7,25.1128]
[1642132725062,2.957,147.76,147.7,24.8628]
[1642132725268,2.957,147.76,147.67,28.78163794]
[1642132725464,25.7855,147.76,147.67,24.8991]
[1642132726062,35.9407,147.76,147.67,24.8991]
[1642132727262,35.9407,147.76,147.67,25.1491]
[1642132727863,41.9407,147.76,147.67,25.1491]
[1642132728264,41.9407,147.76,147.67,35.3043]
[1642132731306,25.5355,147.76,147.68,24.3467]
[1642132731507,2.707,147.77,147.69,39.48325667]
[1642132731704,10.1543,147.78,147.7,26.7919]
[1642132732109,10.1543,147.78,147.7,27.0419]
[1642132732906,10.1543,147.78,147.7,24.3349]
[1642132733307,12.8613,147.78,147.7,24.3349]
[1642132733508,37.5087,147.78,147.7,24.3349]
[1642132734007,37.7587,147.78,147.7,24.3349]
[1642132734809,37.7587,147.78,147.7,24.0849]
[1642132735010,43.7587,147.78,147.7,24.0849]
[1642132735916,37.7587,147.78,147.7,24.0849]
[1642132736315,37.7587,147.78,147.7,24.3349]
[1642132738518,43.7587,147.78,147.7,24.3349]
[1642132746220,43.7587,147.78,147.7,0.25]
[1642132746426,52.0157,147.78,147.67,24.8991]
[1642132746621,119.6857,147.78,147.67,24.8991]
[1642132747024,119.6857,147.78,147.68,22.5847]
[1642132747824,119.6857,147.78,147.68,22.8347]
[1642132750152,119.6857,147.78,147.68,32.9891]
[1642132750753,119.6857,147.78,147.68,22.8347]
[1642132755658,129.9052,147.78,147.68,22.8347]